bitfinex/quotes_ETHUSD_20241106
["timestamp","ask_amount","ask_price","bid_price","bid_amount"]
[1730891280964,3.81303,2622.6,2622.3,0.08495969]
[1730891281575,3.81303,2622.6,2622.4,0.0849186]
[1730891282083,3.81303,2622.6,2622.2,3.81358]
[1730891282380,3.81316,2622.5,2622.1,3.81372]
[1730891282588,3.81316,2622.5,2622.3,0.0849558]
[1730891282736,3.81316,2622.5,2622.2,0.08499301]
[1730891283245,3.798567,2622.5,2622.2,0.08499301]
[1730891283442,3.81303,2622.6,2622.2,0.08499301]
[1730891283781,3.81315,2622.5,2622.2,0.08499301]
[1730891284646,3.81303,2622.6,2622.2,0.08499301]
[1730891284949,4.60626,2622.7,2622.2,3.89849301]
[1730891285177,3.8127,2622.9,2622.3,4.61844]
[1730891285178,3.81276,2622.8,2622.3,4.61844]
[1730891286260,8.19140711,2623.5,2622.8,3.8126]
[1730891286261,0.7704,2623.1,2622.8,3.8126]
[1730891286469,0.7704,2623.4,2622.8,0.8114]
[1730891286658,4.58227,2623.4,2622.9,3.89724038]
[1730891286982,3.81207,2623.3,2622.9,0.08474038]
[1730891287888,0.7704,2623.4,2622.9,7.70975038]
[1730891288076,0.7704,2623.4,2623.0,3.81241]
[1730891288273,0.7704,2623.4,2623.1,0.08451837]
[1730891288651,0.7704,2623.4,2623.1,3.89670837]
[1730891288862,0.7704,2623.4,2623.1,0.08451837]
[1730891289068,3.81213,2623.2,2623.1,0.08451837]
[1730891289288,4.651576,2623.2,2623.1,0.08446011]
[1730891289483,4.651576,2623.2,2622.7,3.81286]
[1730891289692,3.81237,2623.1,2622.6,3.813]
[1730891289900,3.81258,2622.9,2622.8,0.08457168]
[1730891290193,4.61943,2623.0,2622.4,3.81319]
[1730891290364,0.807,2623.0,2622.4,3.81319]
[1730891290693,0.807,2623.0,2622.6,3.81298]
[1730891291058,4.61943,2623.0,2622.7,0.08441464]
[1730891291258,5.462602,2623.0,2622.7,0.08441464]
[1730891291463,5.462602,2623.0,2622.6,3.81298]
[1730891291665,0.7765,2623.2,2622.7,0.08441464]
[1730891291872,0.7765,2623.4,2623.0,3.81235]
[1730891292068,0.7765,2623.4,2623.1,3.8122]
[1730891292285,0.7765,2623.4,2623.1,3.89646588]
[1730891292589,0.7765,2623.4,2623.1,0.08426588]
[1730891292790,4.58842,2623.4,2623.1,0.08426588]
[1730891293088,4.58842,2623.4,2622.9,3.81256]
[1730891293387,4.58842,2623.4,2623.0,0.08430306]
[1730891293579,4.58842,2623.4,2623.0,3.89672306]
[1730891294155,8.40034,2623.4,2623.0,0.08430306]
[1730891294367,3.81206,2623.3,2623.0,0.08430306]
[1730891294652,3.81221,2623.2,2622.7,3.81283]
[1730891294852,3.81221,2623.2,2622.8,3.81271]
[1730891295200,0.8136,2623.1,2622.8,3.89708745]
[1730891297100,0.8136,2623.1,2622.8,0.08437745]
[1730891297399,0.8136,2623.1,2622.5,3.81308]
[1730891297578,3.81254,2623.0,2622.9,0.08434025]
[1730891297908,4.275154,2623.0,2622.9,0.08434025]
[1730891298205,3.81265,2622.9,2622.4,3.81329]
[1730891298565,3.81265,2622.9,2622.5,0.08448904]
[1730891299282,4.63836,2622.7,2622.5,0.08448904]
[1730891299482,3.813,2622.6,2622.1,0.7849]
[1730891299804,3.813,2622.6,2622.2,0.08460066]
[1730891300391,5.102196,2622.7,2622.2,0.08460066]
[1730891300592,3.81323,2622.5,2622.2,0.08460066]
[1730891300812,3.81323,2622.5,2621.8,4.59896]
[1730891300813,3.81344,2622.3,2621.8,4.59896]
[1730891300973,3.81344,2622.3,2621.9,3.81399]
[1730891301173,4.58521,2622.4,2621.9,3.81399]
[1730891302609,3.81352,2622.3,2621.8,3.81415]
[1730891303477,3.81352,2622.3,2621.9,3.81401]
[1730891304015,4.58521,2622.4,2621.9,3.81389]
[1730891304173,4.58521,2622.4,2622.0,3.81385]
[1730891304378,0.7719,2622.4,2622.0,3.81388]
[1730891304921,0.7719,2622.4,2622.1,3.81371]
[1730891307094,3.81301,2622.6,2622.1,3.81371]
[1730891307301,8.44103,2622.6,2622.1,3.81371]
[1730891307919,4.62791,2622.6,2622.1,3.81371]
[1730891308221,4.62791,2622.6,2622.0,4.59988]
[1730891308222,3.81322,2622.5,2622.0,4.59988]
[1730891308423,4.62792,2622.6,2622.1,3.81373]
[1730891308734,0.8149,2622.6,2622.3,3.81337]
[1730891309084,1.3219,2622.8,2622.4,3.81326]
[1730891309485,3.81259,2622.9,2622.5,3.81314]
[1730891309785,0.7719,2623.0,2622.6,3.81299]
[1730891309991,0.7719,2623.2,2622.8,3.81262]
[1730891310204,0.7719,2623.2,2622.9,3.81255]
[1730891310587,0.7719,2623.2,2622.9,7.6251]
[1730891310839,0.7719,2623.2,2622.9,3.81255]
[1730891311128,0.7719,2623.2,2623.0,0.07898396]
[1730891311690,0.8082,2623.4,2623.0,0.07898396]
[1730891311919,0.8082,2623.4,2623.1,7.62442]
[1730891312294,0.8082,2623.4,2623.2,0.07875421]
[1730891312909,4.61826,2623.6,2623.2,0.07875421]
[1730891313732,3.8117,2623.5,2623.2,0.07875421]
[1730891314302,3.81186,2623.4,2623.2,0.07875421]
[1730891314504,3.81186,2623.4,2622.8,0.7823]
[1730891314689,3.81202,2623.3,2622.9,3.89134809]
[1730891314898,3.81202,2623.3,2622.9,0.07878809]
[1730891315403,0.8067,2623.1,2622.9,0.07878809]
[1730891315819,0.8067,2623.1,2622.8,3.81268]
[1730891316023,0.8067,2623.1,2623.0,0.07875479]
[1730891316200,4.6187,2623.3,2622.9,3.89129197]
[1730891316399,0.8067,2623.3,2623.0,0.07880139]
[1730891316932,4.61871,2623.3,2623.0,0.07880139]
[1730891317101,4.61871,2623.3,2622.8,3.8127]
[1730891317435,0.8067,2623.3,2622.9,3.89133858]
[1730891318311,4.61876,2623.3,2622.9,0.07883858]
[1730891318630,0.8067,2623.3,2622.9,3.89137858]
[1730891318842,3.81242,2623.0,2622.9,0.07883858]
[1730891319138,3.81242,2623.0,2622.5,4.62115]
[1730891319438,4.61048,2622.9,2622.6,0.07895016]
[1730891319637,0.7979,2622.9,2622.6,0.07895016]
[1730891319826,0.7979,2622.9,2622.5,3.81306]
[1730891320010,0.7979,2622.9,2622.7,0.07891297]
[1730891320344,0.7979,2622.9,2622.8,0.07891849]
[1730891320495,0.7979,2622.9,2622.5,3.81306]
[1730891320842,0.7979,2622.9,2622.6,0.07899289]
[1730891321023,3.8128,2622.8,2622.6,0.07899289]
[1730891321407,3.8128,2622.8,2622.3,4.58914]
[1730891321607,3.8128,2622.8,2622.7,0.07898676]
[1730891321815,3.8128,2622.8,2622.4,3.81329]
[1730891322021,4.61048,2622.9,2622.4,3.81318]
[1730891322220,4.61048,2622.9,2622.5,0.07906116]
[1730891323153,0.7979,2622.9,2622.5,0.07906116]
[1730891323301,4.61047,2622.9,2622.5,0.07906116]
[1730891323507,8.42317,2622.9,2622.5,0.07906116]
[1730891324029,4.61047,2622.9,2622.5,0.07906116]
[1730891324248,8.42313,2622.9,2622.5,0.07906116]
[1730891324421,4.61047,2622.9,2622.5,0.07906116]
[1730891324756,3.81272,2622.8,2622.5,0.07906116]
[1730891324908,4.61049,2622.9,2622.5,0.07906116]
[1730891325338,4.61049,2622.9,2622.5,3.89219116]
[1730891325649,4.61049,2622.9,2622.5,0.07906116]
[1730891326147,5.1318,2622.6,2622.5,0.07906116]
[1730891326446,3.81343,2622.4,2621.9,3.81394]
[1730891326752,3.81343,2622.4,2622.0,0.07928215]
[1730891327224,3.81343,2622.4,2622.0,3.89314215]
[1730891327428,3.81343,2622.4,2622.0,3.81386]
[1730891327734,3.81343,2622.4,2622.1,0.07924494]
[1730891330453,3.81316,2622.5,2622.1,3.89295494]
[1730891331168,3.81281,2622.8,2622.2,4.63457]
[1730891331453,4.58157,2622.9,2622.4,3.81323]
[1730891331634,4.58156,2622.9,2622.4,3.81323]
[1730891331837,4.58156,2622.9,2622.5,0.0792554]
[1730891332039,4.58156,2622.9,2622.4,3.81323]
[1730891332229,4.58156,2622.9,2622.6,0.07917158]
[1730891332431,4.58156,2622.9,2622.3,3.81336]
[1730891332432,3.81243,2623.0,2622.5,7.70539878]
[1730891332725,3.81243,2623.0,2622.6,0.84417158]
[1730891333647,3.81243,2623.0,2622.6,4.65715158]
[1730891333850,0.7513,2623.1,2622.7,3.81286]
[1730891334158,4.56339,2623.3,2622.8,3.81263]
[1730891334461,4.56339,2623.3,2622.8,3.89168057]
[1730891334662,4.56339,2623.3,2622.8,0.07905057]
[1730891334663,4.56338,2623.3,2622.8,0.07905057]
[1730891334838,4.268549,2623.2,2622.8,0.07905057]
[1730891335027,4.268549,2623.2,2622.7,3.81285]
[1730891335223,4.268549,2623.2,2622.9,0.07900949]
[1730891335441,4.268549,2623.2,2622.7,3.81285]
[1730891335442,4.268549,2623.2,2622.8,0.07904668]
[1730891335642,4.268549,2623.2,2623.0,0.0789723]
[1730891335853,4.268549,2623.2,2622.9,0.07900949]
[1730891336041,4.268549,2623.2,2623.1,0.07886365]
[1730891336363,4.268549,2623.2,2623.1,0.07889238]
[1730891336565,4.268549,2623.2,2622.7,3.81285]
[1730891336739,3.81221,2623.2,2622.8,0.07900395]
[1730891336940,3.81221,2623.2,2622.7,3.81285]
[1730891337146,3.8123,2623.1,2622.8,0.07900395]
[1730891337331,3.8123,2623.1,2622.7,3.81285]
[1730891337534,3.8123,2623.1,2622.8,0.07900395]
[1730891337839,3.8123,2623.1,2622.7,3.81285]
[1730891338053,3.8123,2623.1,2622.9,0.07896676]
[1730891338250,3.8123,2623.1,2622.8,0.07900395]
[1730891338566,3.8123,2623.1,2622.9,0.07896676]
[1730891338724,3.8123,2623.1,2622.7,3.81285]
[1730891338928,3.8123,2623.1,2622.8,0.07896899]
[1730891339153,3.8123,2623.1,2622.7,3.81285]
[1730891339357,3.8123,2623.1,2622.8,0.07895734]
[1730891339541,3.8123,2623.1,2622.7,3.81285]
[1730891339752,3.8123,2623.1,2622.8,0.07895734]
[1730891340066,3.8123,2623.1,2622.7,3.81285]
[1730891340230,3.8123,2623.1,2622.9,0.07892015]
[1730891340540,3.8123,2623.1,2623.0,0.07888296]
[1730891340742,3.8123,2623.1,2622.7,3.81285]
[1730891340943,3.8123,2623.1,2622.8,0.07892298]
[1730891341171,3.8123,2623.1,2622.7,3.81285]
[1730891341368,3.8123,2623.1,2622.8,0.07895734]
[1730891341539,3.8123,2623.1,2622.7,3.81285]
[1730891341746,3.8123,2623.1,2622.8,0.07895734]
[1730891341948,3.81244,2623.0,2622.6,4.578]
[1730891342158,3.81261,2622.9,2622.7,0.07899454]
[1730891342474,3.81261,2622.9,2622.4,4.59357]
[1730891342626,3.81261,2622.9,2622.8,0.07867533]
[1730891342825,3.81261,2622.9,2622.4,4.59357]
[1730891343027,3.81261,2622.9,2622.4,0.7803]
[1730891343270,3.81261,2622.9,2622.5,3.89220893]
[1730891343474,4.56412,2622.8,2622.5,0.07906893]
[1730891343643,3.81288,2622.7,2622.5,0.07906893]
[1730891344191,3.813,2622.6,2622.2,3.81357]
[1730891344385,3.81316,2622.5,2622.3,0.07905398]
[1730891344552,3.81316,2622.5,2622.0,3.81373]
[1730891344871,3.81316,2622.5,2622.1,3.89270357]
[1730891347590,3.81309,2622.6,2622.1,3.89270357]
[1730891348493,3.81319,2622.5,2622.1,3.89270357]
[1730891349678,3.81333,2622.4,2622.1,0.07903357]
[1730891350375,4.6077,2622.4,2622.1,0.07903357]
[1730891350563,3.81353,2622.3,2621.9,0.8199]
[1730891350763,3.81353,2622.3,2622.0,0.07936374]
[1730891351064,3.81366,2622.2,2622.0,0.07936374]
[1730891351264,3.81373,2622.1,2622.0,0.07936374]
[1730891351589,3.81392,2622.0,2621.6,3.81444]
[1730891352166,3.81373,2622.1,2621.5,0.7881]
[1730891352353,3.81403,2621.9,2621.5,4.60268]
[1730891353455,3.81403,2621.9,2621.5,0.7881]
[1730891353712,0.8125,2621.8,2621.4,7.62941]
[1730891353867,0.8125,2621.8,2621.4,3.81474]
[1730891354985,0.8125,2621.8,2621.2,3.81491]
[1730891354986,3.81454,2621.6,2621.2,3.81491]
[1730891355481,7.62885,2621.7,2621.2,3.81491]
[1730891356071,7.62885,2621.7,2621.3,0.0775433]
[1730891356253,3.81447,2621.6,2621.3,0.0775433]
[1730891356457,3.81471,2621.5,2621.0,3.81521]
[1730891356671,3.81471,2621.5,2621.4,0.07750606]
[1730891356876,3.81471,2621.5,2621.0,3.81521]
[1730891357179,3.81471,2621.5,2621.1,0.07769552]
[1730891357378,3.81476,2621.4,2621.1,0.07769552]
[1730891357804,7.62962,2621.4,2621.1,0.07769552]
[1730891358103,3.81476,2621.4,2621.1,0.07769552]
[1730891358268,3.81476,2621.4,2620.9,4.64067]
[1730891358463,3.81476,2621.4,2621.2,0.07765828]
[1730891358670,3.81476,2621.4,2621.0,3.81532]
[1730891359174,3.81476,2621.4,2621.1,0.07769552]
[1730891359794,3.81463,2621.5,2621.1,0.07769552]
[1730891362057,3.81478,2621.4,2621.1,0.07769552]
[1730891364703,7.62962,2621.4,2621.1,0.07769552]
[1730891365206,7.62962,2621.4,2620.9,4.64065]
[1730891365360,3.81478,2621.4,2621.0,0.07788829]
[1730891365679,3.81498,2621.3,2621.0,0.07788829]
[1730891366085,3.81519,2621.1,2621.0,0.07788829]
[1730891366400,3.81519,2621.1,2620.7,0.05722608]
[1730891366599,3.81519,2621.1,2620.8,0.07562129]
[1730891366804,3.81519,2621.1,2620.6,8.44493]
[1730891367094,3.81505,2621.2,2620.7,3.89140854]
[1730891368757,3.81483,2621.4,2620.9,3.81537]
[1730891368964,3.81491,2621.3,2621.0,0.85809735]
[1730891369562,3.81483,2621.4,2621.0,0.85809735]
[1730891369790,3.81461,2621.5,2621.1,3.81518]
[1730891369997,3.81461,2621.5,2621.2,0.07552675]
[1730891370574,3.81446,2621.6,2621.2,3.89055675]
[1730891370991,7.62904,2621.6,2621.2,0.07552675]
[1730891371203,3.81462,2621.5,2621.2,0.07552675]
[1730891371495,3.81446,2621.6,2621.2,0.07552675]
[1730891372687,3.81434,2621.7,2621.2,3.89051675]
[1730891372888,3.8142,2621.8,2621.4,0.7524]
[1730891373088,3.8142,2621.8,2621.4,4.56714]
[1730891373282,3.8142,2621.8,2621.5,0.07539949]
[1730891373705,3.814,2622.0,2621.5,0.07539949]
[1730891374001,3.81374,2622.1,2621.6,7.62882]
[1730891374172,3.81374,2622.1,2621.7,0.07532504]
[1730891374896,7.62746,2622.1,2621.7,0.07532504]
[1730891375208,4.659376,2622.0,2621.7,0.07532504]
[1730891375373,3.81396,2622.0,2621.5,3.81454]
[1730891375573,3.81396,2622.0,2621.6,0.07536226]
[1730891376810,3.81396,2622.0,2621.6,3.81446]
[1730891376998,3.81396,2622.0,2621.7,0.07532504]
[1730891377315,3.81404,2621.9,2621.7,0.07532504]
[1730891377808,4.6404,2622.2,2621.8,0.07528781]
[1730891377985,3.81388,2622.0,2621.5,3.81459]
[1730891378203,3.81388,2622.0,2621.6,0.07536226]
[1730891378694,3.81388,2622.0,2621.6,3.88980226]
[1730891378893,3.81388,2622.0,2621.6,3.81444]
[1730891379106,3.81388,2622.0,2621.7,0.07521617]
[1730891380377,4.64039,2622.2,2621.7,0.07521617]
[1730891380576,3.81345,2622.3,2621.9,3.814]
[1730891380819,3.81345,2622.3,2622.0,0.07496063]
[1730891381191,3.81345,2622.3,2621.8,8.38847]
[1730891381403,3.81345,2622.3,2621.9,3.88893176]
[1730891381604,3.81331,2622.4,2622.0,3.81386]
[1730891381821,3.81331,2622.4,2622.1,0.07485733]
[1730891382639,3.81317,2622.5,2622.1,0.07485733]
[1730891382843,3.81311,2622.6,2622.1,3.88856733]
[1730891383003,3.81311,2622.6,2622.2,0.8269]
[1730891383196,3.81311,2622.6,2622.3,0.07478291]
[1730891383400,3.81322,2622.5,2622.2,0.8269]
[1730891383705,1.59227212,2624.0,2622.3,0.07474403]
[1730891383706,3.81282,2622.8,2622.3,0.07474403]
[1730891383901,3.81282,2622.8,2622.4,3.81327]
[1730891384443,3.81282,2622.8,2622.5,0.07461132]
[1730891385630,0.8147,2623.0,2622.5,0.07461132]
[1730891385631,3.81287,2622.7,2622.5,0.07461132]
[1730891385939,3.81287,2622.7,2622.3,3.81343]
[1730891386141,3.81287,2622.7,2622.6,0.07438001]
[1730891386341,3.81287,2622.7,2622.3,3.81343]
[1730891386543,3.81287,2622.7,2622.6,0.07438001]
[1730891386742,3.81287,2622.7,2622.3,3.81343]
[1730891386909,3.81287,2622.7,2622.6,0.07434591]
[1730891387111,3.81287,2622.7,2622.3,3.81343]
[1730891387345,3.81287,2622.7,2622.6,0.07434455]
[1730891387647,3.81287,2622.7,2622.6,0.07441867]
[1730891387847,3.81287,2622.7,2622.3,3.81343]
[1730891388056,3.81287,2622.7,2622.6,0.07441867]
[1730891388343,3.81287,2622.7,2622.2,4.64046]
[1730891388522,3.81287,2622.7,2622.6,0.07441867]
[1730891388727,3.81287,2622.7,2622.2,4.64046]
[1730891388923,3.81287,2622.7,2622.6,0.07434455]
[1730891389123,3.81287,2622.7,2622.2,4.64046]
[1730891389419,3.81287,2622.7,2622.3,3.81342]
[1730891389746,3.81273,2622.8,2622.4,0.07449308]
[1730891393049,3.81258,2622.9,2622.4,0.07449308]
[1730891393345,3.81258,2622.9,2622.4,3.88768308]
[1730891393549,3.81258,2622.9,2622.5,3.81315]
[1730891393854,3.81258,2622.9,2622.6,0.07411938]
[1730891394144,3.81225,2623.2,2622.7,4.57243]
[1730891394351,3.8123,2623.1,2622.7,4.57243]
[1730891394556,3.81245,2623.0,2622.8,0.07404499]
[1730891395056,3.81245,2623.0,2622.9,0.07400779]
[1730891395441,3.81245,2623.0,2622.7,0.7596]
[1730891395635,4.574919,2623.0,2622.9,0.07400779]
[1730891395944,3.81257,2622.9,2622.8,0.07404499]
[1730891396108,3.81257,2622.9,2622.4,3.81323]
[1730891396314,3.81257,2622.9,2622.8,0.07404499]
[1730891396539,3.81294,2622.7,2622.3,0.7835]
[1730891396715,4.575502,2622.7,2622.3,0.7835]
[1730891396936,4.575502,2622.7,2622.4,0.07411219]
[1730891397641,0.8184,2622.6,2622.4,0.07411219]
[1730891397872,4.63151,2622.6,2622.1,4.56602]
[1730891398174,4.63151,2622.6,2622.5,0.07410218]
[1730891398379,4.63151,2622.6,2622.1,4.56602]
[1730891398539,4.63151,2622.6,2622.5,0.07410218]
[1730891398734,4.63151,2622.6,2622.1,4.56602]
[1730891398932,4.63151,2622.6,2622.5,0.07410218]
[1730891399134,4.63151,2622.6,2622.1,4.56602]
[1730891399361,4.63151,2622.6,2622.5,0.07410218]
[1730891399578,1.7391012,2622.6,2621.9,3.81402]
[1730891399737,1.7391012,2622.6,2621.9,0.8105]
[1730891399934,3.81361,2622.2,2621.9,0.8105]
[1730891400777,9.3653012,2622.6,2622.1,3.81366]
[1730891400961,3.81316,2622.5,2622.0,7.62756]
[1730891401142,3.81316,2622.5,2622.2,0.07442754]
[1730891401451,3.81316,2622.5,2622.0,3.81376]
[1730891401452,3.81316,2622.5,2622.3,0.07439033]
[1730891401849,3.81316,2622.5,2622.0,3.81376]
[1730891402078,3.81315,2622.5,2622.4,0.07435312]
[1730891402279,4.657614,2622.5,2622.0,3.81376]
[1730891402586,3.81315,2622.5,2622.4,0.07435312]
[1730891402771,3.81336,2622.4,2622.0,3.81376]
[1730891403877,3.81336,2622.4,2621.9,0.8105]
[1730891404054,3.81348,2622.3,2621.9,0.8105]
[1730891404661,7.62679,2622.4,2621.9,4.62451]
[1730891405500,3.81336,2622.4,2621.9,4.62451]
[1730891405793,7.62673,2622.4,2621.9,4.62451]
[1730891405954,3.81345,2622.3,2621.9,0.8105]
[1730891406153,3.81316,2622.5,2622.0,3.81376]
[1730891406354,3.81316,2622.5,2622.0,7.62755]
[1730891406600,3.81316,2622.5,2622.0,3.81376]
[1730891407269,3.81288,2622.7,2622.3,0.829]
[1730891407854,4.57593,2622.8,2622.4,3.81329]
[1730891408093,4.57593,2622.8,2622.3,0.829]
[1730891408094,3.81286,2622.7,2622.3,0.829]
[1730891408895,3.81286,2622.7,2622.4,0.07173165]
[1730891409055,3.81301,2622.6,2622.4,0.07173165]
[1730891409761,3.81301,2622.6,2622.2,3.81358]
[1730891410489,3.81321,2622.5,2622.3,0.0717706]
[1730891410701,4.582,2622.4,2622.3,0.0717706]
[1730891410890,4.582,2622.4,2621.7,0.7907]
[1730891410891,3.81383,2622.1,2621.7,0.7907]
[1730891411090,3.81404,2621.9,2621.5,4.60529]
[1730891411299,3.81404,2621.9,2621.8,0.0694268]
[1730891411453,3.81404,2621.9,2621.5,4.60529]
[1730891411803,3.81404,2621.9,2621.8,0.06940728]
[1730891412009,3.81404,2621.9,2621.5,4.60529]
[1730891412180,3.81404,2621.9,2621.8,0.06961416]
[1730891412376,4.657307,2621.9,2621.3,8.4224]
[1730891412703,3.8144,2621.7,2621.3,0.7928]
[1730891412997,3.81418,2621.8,2621.4,0.06992241]
[1730891414176,3.81418,2621.8,2621.4,3.88466241]
[1730891414369,0.843267,2621.9,2621.4,3.88466241]
[1730891414708,4.657307,2621.9,2621.4,3.88466241]
[1730891415010,3.81375,2622.1,2621.6,3.81438]
[1730891415305,3.81373,2622.1,2621.7,0.06990014]
[1730891415808,3.8139,2622.0,2621.3,0.7928]
[1730891415982,3.8139,2622.0,2621.5,3.81452]
[1730891416169,3.8139,2622.0,2621.6,0.06993736]
[1730891416369,3.81424,2621.8,2621.6,0.06993736]
[1730891416597,4.27139,2622.0,2621.6,0.06993736]
[1730891416803,0.45741,2622.0,2621.6,3.81435]
[1730891417105,3.81375,2622.1,2621.7,0.8279807]
[1730891417403,3.81375,2622.1,2621.7,4.6422907]
[1730891417613,4.57381,2622.2,2621.7,4.6422007]
[1730891418070,8.38748,2622.2,2621.7,4.6422007]
[1730891418409,3.81347,2622.3,2621.8,3.81406]
[1730891418620,3.81347,2622.3,2621.9,0.06972462]
[1730891418769,3.81347,2622.3,2621.9,3.88371462]
[1730891419287,3.81331,2622.4,2622.0,3.81387]
[1730891419491,3.81331,2622.4,2621.9,3.88374462]
[1730891419690,3.81331,2622.4,2622.1,0.06965019]
[1730891419893,3.81346,2622.3,2621.8,3.81406]
[1730891420218,3.81346,2622.3,2622.2,0.06961298]
[1730891420416,3.81346,2622.3,2621.8,7.62816]
[1730891420724,4.7433018,2622.3,2621.8,7.62816]
[1730891420881,3.81367,2622.2,2621.9,0.06972462]
[1730891421087,3.81382,2622.1,2621.7,0.7581]
[1730891421413,3.8139,2622.0,2621.7,0.7581]
[1730891421623,3.81405,2621.9,2621.4,8.39101]
[1730891421781,3.81405,2621.9,2621.8,0.0698394]
[1730891421982,3.81405,2621.9,2621.5,3.81458]
[1730891422210,3.81405,2621.9,2621.4,0.7617]
[1730891422397,3.81433,2621.7,2621.5,0.06998235]
[1730891422935,3.81433,2621.7,2621.2,8.3916]
[1730891423085,3.81433,2621.7,2621.6,0.06670936]
[1730891423282,3.81454,2621.6,2621.2,4.57665]
[1730891423521,4.64284,2621.6,2621.2,4.57665]
[1730891423699,0.8283,2621.6,2621.2,8.39161]
[1730891423895,0.8283,2621.6,2621.2,4.57665]
[1730891424328,0.8283,2621.6,2621.2,8.39161]
[1730891424622,0.8283,2621.6,2621.2,8.39162]
[1730891425025,3.81433,2621.7,2621.3,3.81483]
[1730891425229,0.8283,2621.8,2621.2,4.57665]
[1730891425524,3.81441,2621.7,2621.2,4.57665]
[1730891426322,3.8145,2621.6,2621.2,0.7617]
[1730891426627,3.81441,2621.7,2621.2,8.39168]
[1730891426923,3.81441,2621.7,2621.2,4.57666]
[1730891427602,3.81511,2621.2,2620.6,4.60941]
[1730891427804,0.7782,2621.3,2620.6,4.60941]
[1730891427805,3.8154,2621.0,2620.6,0.7936]
[1730891428134,3.81528,2621.1,2620.5,3.81594]
[1730891428344,3.81526,2621.1,2620.6,3.81589]
[1730891429918,3.81526,2621.1,2620.7,3.81576]
[1730891430506,3.81526,2621.1,2620.5,3.81594]
[1730891430799,7.63053,2621.1,2620.6,3.8159]
[1730891431022,3.81526,2621.1,2620.6,3.8159]
[1730891431222,3.81526,2621.1,2620.7,0.0604334]
[1730891431428,0.840847,2621.1,2620.7,0.0604334]
[1730891431632,3.81551,2620.9,2620.7,0.0604334]
[1730891431833,3.81551,2620.9,2620.5,3.81606]
[1730891432038,3.81562,2620.8,2619.9,3.81679]
[1730891432205,5.13670711,2620.9,2620.0,3.81676]
[1730891432206,0.767,2620.5,2620.0,3.81676]
[1730891432546,4.58316,2620.5,2619.9,7.63364]
[1730891432751,4.58316,2620.5,2620.0,3.81675]
[1730891433443,4.58316,2620.5,2619.9,7.63364]
[1730891433641,4.58314,2620.5,2619.9,3.81679]
[1730891434203,4.58314,2620.5,2619.9,7.63365]
[1730891435164,4.58314,2620.5,2620.0,3.81678]
[1730891435324,4.58314,2620.5,2619.9,3.81679]
[1730891435525,4.58314,2620.5,2620.0,3.81678]
[1730891435927,3.81643,2620.3,2619.8,3.81707]
[1730891438032,0.7771,2620.1,2619.6,0.7994]
[1730891438368,0.7771,2620.1,2619.4,4.57316]
[1730891438369,4.59384,2620.1,2619.4,4.57316]
[1730891438571,4.276174,2620.0,2619.5,3.81742]
[1730891438724,0.459384,2620.0,2619.5,3.81742]
[1730891438930,0.7771,2620.1,2619.6,3.81729]
[1730891439327,3.81656,2620.2,2619.7,3.81715]
[1730891439567,3.81664,2620.1,2619.6,3.81729]
[1730891440968,3.81656,2620.2,2619.7,3.81722]
[1730891441355,7.63318,2620.2,2619.7,3.81722]
[1730891441547,3.81656,2620.2,2619.7,3.81722]
[1730891442575,3.81665,2620.1,2619.7,3.81722]
[1730891442758,0.7963,2620.1,2619.7,3.81722]
[1730891443249,4.61267,2620.3,2619.8,3.81708]
[1730891443448,4.61267,2620.3,2619.8,4.63048]
[1730891444860,4.61267,2620.3,2619.9,3.81693]
[1730891445175,4.61238,2620.5,2620.0,3.81675]
[1730891445379,3.81621,2620.4,2620.0,3.81675]
[1730891446037,3.81621,2620.4,2620.1,0.09577569]
[1730891449581,3.66621,2620.4,2620.1,0.09577569]
[1730891452392,3.81542,2621.0,2620.2,0.8107]
[1730891452597,3.81519,2621.1,2620.6,4.59379]
[1730891452797,3.8153,2621.1,2620.6,4.59379]
[1730891452998,3.8153,2621.1,2620.7,0.09533472]
[1730891453559,3.81514,2621.2,2620.7,3.91110472]
[1730891453983,4.6346,2621.3,2620.8,3.81555]
[1730891454184,4.6346,2621.3,2620.9,3.81544]
[1730891454185,0.8197,2621.3,2620.9,3.81544]
[1730891454385,3.81442,2621.7,2620.9,3.81544]
[1730891454386,0.7916,2621.5,2621.1,0.7763]
[1730891454600,0.7916,2621.5,2621.1,4.59149]
[1730891454601,3.81462,2621.5,2621.1,4.59149]
[1730891454762,3.81462,2621.5,2621.2,0.09493692]
[1730891455091,8.42047,2621.7,2621.2,0.09493692]
[1730891455302,3.81447,2621.6,2621.2,0.09493692]
[1730891456095,5.447967,2621.7,2621.2,3.90997692]
[1730891456601,0.7916,2621.7,2621.3,3.81489]
[1730891456900,4.64122,2621.9,2621.3,3.81483]
[1730891457114,4.64122,2621.9,2621.4,0.0945755]
[1730891457301,4.64122,2621.9,2621.4,3.9092655]
[1730891457685,0.8271,2621.9,2621.4,0.0945755]
[1730891457893,4.64113,2621.9,2621.4,3.9093255]
[1730891459159,4.64113,2621.9,2621.4,0.0945755]
[1730891459490,3.81419,2621.8,2621.4,0.0945755]
[1730891460375,4.64113,2621.9,2621.4,0.0945755]
[1730891460584,0.464113,2621.8,2621.3,3.81482]
[1730891460779,4.64121,2621.9,2621.5,0.09447844]
[1730891461018,3.81411,2621.9,2621.5,4.5921]
[1730891461209,3.81411,2621.9,2621.6,0.09443971]
[1730891461739,7.62822,2621.9,2621.6,0.09443971]
[1730891461940,3.81411,2621.9,2621.6,0.09443971]
[1730891463522,3.81388,2622.0,2621.6,0.09443971]
[1730891464406,3.81406,2621.9,2621.6,0.09443971]
[1730891464667,4.60181,2621.7,2621.6,0.09443971]
[1730891465059,3.81466,2621.5,2621.2,0.8029]
[1730891465259,3.0,2621.6,2620.9,0.769]
[1730891465466,3.81527,2621.1,2620.9,0.769]
[1730891465961,3.81519,2621.1,2620.9,0.769]